lending/lending_fUSD_20250210
["ID","MTS","AMOUNT","RATE_DAILY","PERIOD"]
[352607963,1739196632683,-263.77,0.000122,2]
[352607965,1739196632694,-342.94286978,0.000122,2]
[352607967,1739196632709,-2236.92088886,0.000122,2]
[352607970,1739196632721,-354.92370002,0.000122,2]
[352607972,1739196632732,-537.44719657,0.000122,2]
[352607974,1739196632742,-12631.03209694,0.000122,2]
[352607976,1739196632753,-650.11766089,0.000122,2]
[352608005,1739196637931,-5000.0,0.00012199,2]
[352608006,1739196637940,-94311.35226631,0.000122,2]
[352608007,1739196637951,-1208.16802132,0.000122,2]
[352608008,1739196637966,-184187.01105686,0.000122,2]
[352608009,1739196637978,-3883.155,0.000122,2]
[352608010,1739196637989,-4676.235,0.000122,2]
[352608011,1739196638005,-14025.23753574,0.000122,2]
[352608012,1739196638016,-8556.85479099,0.000122,2]
[352608013,1739196638027,-19665.68552,0.000122,2]
[352608014,1739196638055,-188915.39130282,0.000122,2]
[352608015,1739196638117,-58963.70741992,0.000122,2]
[352608016,1739196638129,-17451.08603591,0.000122,2]
[352608192,1739196639912,-5000.0,0.00012199,2]
[352608194,1739196639921,-366.31119991,0.000122,2]
[352608196,1739196639934,-1901.63601264,0.000122,2]
[352608198,1739196639946,-442.85114125,0.000122,2]
[352608201,1739196639962,-401.37499799,0.000122,2]
[352608203,1739196639973,-982.12812074,0.000122,2]
[352608205,1739196639985,-32323.12756008,0.000122,2]
[352608211,1739196640036,-29852.499995,0.000122,2]
[352608213,1739196640050,-716.33181701,0.000122,2]
[352608215,1739196640061,-632.87229269,0.000122,2]
[352608228,1739196640173,-11277.06406043,0.000122,2]
[352608260,1739196640461,-23715.66992787,0.000122,2]
[352608262,1739196640472,-7281.1948801,0.000122,2]
[352608264,1739196640483,-552.74324051,0.000122,2]
[352608267,1739196640500,-941.68,0.000122,2]
[352608269,1739196640511,-625.42636932,0.000122,2]
[352608271,1739196640522,-753.69950238,0.000122,2]
[352608525,1739196642863,-308.400007,0.000122,2]
[352608536,1739196642920,-66282.0,0.000122,2]
[352608539,1739196642933,-432.486909,0.000122,2]
[352608545,1739196642986,-2545.37669141,0.000122,2]
[352608552,1739196643040,-151290.99193508,0.000122,2]
[352608554,1739196643051,-8939.37887965,0.000122,2]
[352608556,1739196643063,-1620.35810267,0.000122,2]
[352608561,1739196643099,-9842.3,0.000122,2]
[352608579,1739196643261,-1599.69617471,0.000122,2]
[352608581,1739196643272,-8880.41721204,0.000122,2]
[352608844,1739196645911,-420.4240141,0.00012199,2]
[352608846,1739196645924,-2894.30435435,0.00012199,2]
[352608858,1739196646032,-1685.27163155,0.00012199,2]
[352608860,1739196646042,-27647.9520708,0.000122,2]
[352608862,1739196646055,-8946.39205495,0.000122,2]
[352608864,1739196646066,-85073.42415164,0.000122,2]
[352608866,1739196646076,-10508.65086585,0.0001225,2]
[352608868,1739196646087,-500.0,0.00012273,2]
[352608870,1739196646096,-199598.67993534,0.00012296,3]
[352608872,1739196646108,-557.58671323,0.00012296,3]
[352608876,1739196646137,-2763.18114924,0.00012296,3]
[352608879,1739196646155,-617.4800175,0.00012296,3]
[352608893,1739196646276,-602.9465585,0.00012296,3]
[352608895,1739196646287,-1843.65503833,0.00012296,3]
[352608897,1739196646299,-348.547565,0.00012296,3]
[352608902,1739196646340,-5080.03299202,0.00012296,3]
[352609062,1739196947220,289.238,8.699e-05,2]
[352609064,1739197460644,1609.6811,8.699e-05,2]
[352609101,1739197832170,-1259.929,8.973e-05,2]
[352609102,1739197832179,-638.12,9.361e-05,2]
[352609103,1739197832190,-158.045666,9.82e-05,2]
[352609104,1739197832199,-500.0,9.87e-05,2]
[352609105,1739197832210,-150.0,9.979e-05,2]
[352609106,1739197832219,-4691.22216783,9.98e-05,2]
[352609107,1739197832230,-305.98,9.98e-05,2]
[352609108,1739197832266,-478.31588386,9.98e-05,2]
[352609109,1739197832278,-658.49506007,9.98e-05,2]
[352609110,1739197832506,-19579.9823986,9.98e-05,2]
[352609111,1739197832526,-607.75,9.98e-05,2]
[352609112,1739197832617,-89481.11772395,9.98e-05,2]
[352609113,1739197832627,-31397.60032967,0.0001,2]
[352609114,1739197832640,-36503.06598216,0.0001,2]
[352609115,1739197832649,-441.96209879,0.0001,2]
[352609116,1739197832660,-340.06,0.00010137,2]
[352609117,1739197832670,-500.0,0.00010219,2]
[352609118,1739197832680,-125259.68597051,0.00010475,2]
[352609119,1739197832689,-299.99,0.00010475,2]
[352609120,1739197832699,-255.0,0.00010977,2]
[352609121,1739197832708,-164.08,0.00010982,2]
[352609122,1739197832718,-23900.0,0.00011037,2]
[352609123,1739197832727,-190.0,0.00011233,2]
[352609124,1739197832736,-358.01,0.00011275,2]
[352609126,1739197832745,-438.71,0.00011278,2]
[352609128,1739197832754,-151.38,0.00011278,2]
[352609130,1739197832763,-150.0,0.00011278,2]
[352609132,1739197832772,-1000.0,0.00011285,2]
[352609133,1739197832782,-1548.66,0.00011341,2]
[352609135,1739197832791,-495.5,0.00011465,2]
[352609137,1739197832801,-507.53,0.00011465,2]
[352609139,1739197832810,-491.76,0.00011465,2]
[352609141,1739197832820,-743.95,0.00011466,2]
[352609143,1739197832829,-774.87,0.000115,2]
[352609145,1739197832839,-638.12,0.00011625,2]
[352609147,1739197832848,-438.71,0.00011681,2]
[352609149,1739197832859,-150.0,0.00011681,2]
[352609151,1739197832868,-300.0,0.00011681,2]
[352609153,1739197832877,-150.0,0.00011681,2]
[352609155,1739197832886,-431.43955898,0.00011948,2]
[352609157,1739197832896,-400.23706999,0.00012,2]
[352609159,1739197832905,-830.4307159,0.00012052,2]
[352609161,1739197832917,-255.0,0.00012075,2]
[352609163,1739197832926,-204.386,0.00012099,2]
[352609165,1739197832935,-194.43770355,0.00012196,2]
[352609167,1739197832944,-505.03,0.00012199,2]
[352609169,1739197832954,-506.28,0.00012199,2]
[352609172,1739197832963,-5000.0,0.00012199,2]
[352609175,1739197832972,-5000.0,0.00012199,2]
[352609177,1739197832981,-1851.86652848,0.00012199,2]
[352609651,1739197838068,-3148.13347152,0.00012199,2]
[352609653,1739197838077,-3117.49879895,0.00012199,2]
[352609662,1739197838156,-1800.0,0.00012199,2]
[352609666,1739197838191,-82.50120105,0.00012199,2]
[352609668,1739197838201,-881.94227895,0.00012199,2]
[352609677,1739197838283,-1802.74182023,0.00012199,2]
[352609680,1739197838295,-2649.82918772,0.00012199,2]
[352609682,1739197838304,-500.0,0.000122,2]
[352609684,1739197838314,-2000.0,0.000122,2]
[352609685,1739197838324,-500.0,0.000122,2]
[352609688,1739197838338,-200.0,0.000122,2]
[352609689,1739197838348,-4000.0,0.00012273,2]
[352609692,1739197838359,-1231.8848329,0.00012289,2]
[352609694,1739197838370,-201.66252994,0.00012298,2]
[352609696,1739197838379,-870.58133452,0.00012299,2]
[352609698,1739197838389,-274.5297718,0.00012299,2]
[352609700,1739197838399,-204.386,0.00012299,2]
[352609701,1739197838409,-500.0,0.00012373,2]
[352609704,1739197838424,-151.26981312,0.00012373,2]
[352609705,1739197838434,-44598.92003,0.00012384,2]
[352609706,1739197838445,-5296.07997,0.00012384,2]
[352609707,1739197838455,-30081.61668557,0.0001239,2]
[352609708,1739197838464,-300.0,0.00012397,2]
[352609709,1739197838473,-300.0,0.00012398,2]
[352609710,1739197838482,-666.0,0.00012398,2]
[352609711,1739197838491,-300.0,0.00012398,2]
[352609712,1739197838500,-666.0,0.00012398,2]
[352609713,1739197838510,-300.0,0.00012398,2]
[352609714,1739197838519,-666.0,0.00012398,2]
[352609716,1739197838528,-300.0,0.00012398,2]
[352609717,1739197838537,-308.39563508,0.00012398,2]
[352609719,1739197838546,-680.62728129,0.00012398,2]
[352609721,1739197838556,-300.0,0.00012398,2]
[352609723,1739197838565,-78342.62386184,0.00012398,3]
[352609726,1739197838580,-1113.81235035,0.00012398,3]
[352609728,1739197838591,-832.74066278,0.00012398,3]
[352609730,1739197838602,-605.72030286,0.00012398,3]
[352609733,1739197838617,-790.64951104,0.00012398,3]
[352609883,1739197840054,-356.96542972,0.00012398,3]
[352609894,1739197840153,-310095.78054561,0.00012398,3]
[352609897,1739197840174,-40166.23148795,0.00012398,3]
[352609899,1739197840187,-3376.81851205,0.00012398,3]
[352609901,1739197840198,-372.57600001,0.00012398,3]
[352609904,1739197840209,-3185.0,0.00012398,3]
[352609906,1739197840221,-34216.81669459,0.00012398,3]
[352609916,1739197840306,-771.32533088,0.00012398,3]
[352609918,1739197840317,-2736.39119504,0.00012398,3]
[352609920,1739197840334,-1910.6777378,0.00012398,3]
[352609922,1739197840346,-659.9999998,0.00012398,3]
[352609925,1739197840362,-822.12760253,0.00012398,3]
[352609927,1739197840374,-323.86233323,0.00012398,3]
[352610089,1739197842243,-534.1029658,0.00012398,3]
[352610099,1739197842332,-195247.590688,0.00012398,3]
[352610109,1739197842419,-322.36,0.00012398,3]
[352610151,1739197843085,-880.0000004,0.00012398,3]
[352610152,1739197843096,-2844.78400016,0.00012398,3]
[352610153,1739197843107,-17476.08560783,0.00012398,3]
[352610154,1739197843118,-3771.173325,0.00012398,3]
[352610155,1739197843174,-624.22275199,0.00012398,3]
[352610156,1739197843189,-38034.95164397,0.00012398,3]
[352610157,1739197843206,-98765.3020435,0.00012398,3]
[352610201,1739197843725,-14372.74776098,0.00012398,3]
[352610205,1739197843748,-2787.30223569,0.00012398,3]
[352610207,1739197843760,-5136.25850365,0.00012398,3]
[352610209,1739197843770,-1470.8855,0.00012398,3]
[352610436,1739197846129,-4895.69095636,0.00012398,3]
[352610438,1739197846141,-5049.00675775,0.00012398,3]
[352610446,1739197846210,-11753.45950878,0.00012398,3]
[352610455,1739197846284,-2404.53507387,0.00012398,3]
[352610471,1739197846443,-72301.33178193,0.00012398,3]
[352610876,1739199032215,-300.0,8.835e-05,2]
[352610877,1739199032224,-161.602,8.836e-05,2]
[352610878,1739199032235,-4335.4441,8.836e-05,2]
[352610879,1739199032244,-891.05017502,8.836e-05,2]
[352610880,1739199032255,-2638.46326008,8.836e-05,2]
[352610881,1739199032271,-1479.8645649,8.836e-05,2]
[352610882,1739199032289,-339.8257,8.836e-05,2]
[352610883,1739199032302,-593.02,8.94e-05,2]
[352610884,1739199032317,-4356.3142,8.973e-05,2]
[352610885,1739199032334,-500.0,9.87e-05,2]
[352610886,1739199032350,-3218.72,0.00010104,2]
[352610887,1739199032362,-150.0,0.0001011,2]
[352610888,1739199032378,-239.9,0.00010137,2]
[352610889,1739199032393,-926.37,0.00010213,2]
[352610890,1739199032411,-1852.42,0.00010275,2]
[352610891,1739199032426,-200.0,0.00010325,2]
[352610892,1739199032443,-500.0,0.00010402,2]
[352610893,1739199032457,-531.91,0.00010402,2]
[352610894,1739199032473,-165.25,0.00010402,2]
[352610895,1739199032488,-4794.54,0.00010416,2]
[352610896,1739199032502,-736.6,0.00010807,2]
[352610897,1739199032515,-150.0,0.00010868,2]
[352610898,1739199032531,-150.0,0.00010957,2]
[352610899,1739199032544,-500.0,0.00010958,2]
[352610900,1739199032555,-482.26704015,0.00010958,2]
[352610901,1739199032570,-500.0,0.00010958,2]
[352610902,1739199032584,-500.0,0.00010958,2]
[352610903,1739199032596,-500.0,0.00010958,2]
[352610904,1739199032612,-500.0,0.00010958,2]
[352610905,1739199032625,-500.0,0.00010958,2]
[352610906,1739199032638,-500.0,0.00010958,2]
[352610907,1739199032652,-500.0,0.00010958,2]
[352610908,1739199032665,-500.0,0.00010958,2]
[352610909,1739199032679,-500.0,0.00010958,2]
[352610910,1739199032692,-500.0,0.00010958,2]
[352610911,1739199032706,-500.0,0.00010958,2]
[352610912,1739199032721,-500.0,0.00010958,2]
[352610913,1739199032734,-484.09261772,0.00010958,2]
[352610914,1739199032747,-500.0,0.00010958,2]
[352610915,1739199032760,-500.0,0.00010958,2]
[352610916,1739199032773,-500.0,0.00010958,2]
[352610917,1739199032786,-500.0,0.00010958,2]
[352610918,1739199032801,-500.0,0.00010958,2]
[352610919,1739199032815,-500.0,0.00010958,2]
[352610920,1739199032829,-500.0,0.00010958,2]
[352610921,1739199032843,-500.0,0.00010958,2]
[352610922,1739199032856,-500.0,0.00010958,2]
[352610923,1739199032869,-500.0,0.00010958,2]
[352610924,1739199032882,-500.0,0.00010958,2]
[352610925,1739199032895,-500.0,0.00010958,2]
[352610926,1739199032907,-500.0,0.00010958,2]
[352610927,1739199032920,-500.0,0.00010958,2]
[352610928,1739199032934,-500.0,0.00010958,2]
[352610929,1739199032946,-500.0,0.00010958,2]
[352610930,1739199032959,-500.0,0.00010958,2]
[352610931,1739199032973,-500.0,0.00010958,2]
[352610932,1739199032986,-500.0,0.00010958,2]
[352610933,1739199033000,-500.0,0.00010958,2]
[352610934,1739199033013,-500.0,0.00010958,2]
[352610935,1739199033026,-500.0,0.00010958,2]
[352610936,1739199033040,-500.0,0.00010958,2]
[352610937,1739199033053,-500.0,0.00010958,2]
[352610938,1739199033066,-500.0,0.00010958,2]
[352610939,1739199033079,-172.42869783,0.00010958,2]
[352610940,1739199033109,-327.57130217,0.00010958,2]
[352610941,1739199033123,-222.42869783,0.00010958,2]
[352610942,1739199033140,-277.57130217,0.00010958,2]
[352610943,1739199033153,-262.42869783,0.00010958,2]
[352610944,1739199033169,-237.57130217,0.00010958,2]
[352610945,1739199033184,-297.89869783,0.00010958,2]
[352610946,1739199033201,-202.10130217,0.00010958,2]
[352610947,1739199033215,-500.0,0.00010958,2]
[352610948,1739199033228,-500.0,0.00010958,2]
[352610949,1739199033242,-500.0,0.00010958,2]
[352610950,1739199033256,-500.0,0.00010958,2]
[352610951,1739199033269,-501.67673369,0.00010958,2]
[352610952,1739199033282,-500.0,0.00010958,2]
[352610953,1739199033296,-500.0,0.00010958,2]
[352610954,1739199033309,-500.0,0.00010958,2]
[352610955,1739199033322,-500.0,0.00010958,2]
[352610956,1739199033336,-500.0,0.00010958,2]
[352610957,1739199033351,-500.0,0.00010958,2]
[352610958,1739199033365,-612.72367965,0.00010958,2]
[352610959,1739199033376,-500.0,0.00010958,2]
[352610960,1739199033386,-500.0,0.00010958,2]
[352610961,1739199033395,-500.0,0.00010958,2]
[352610962,1739199033404,-500.0,0.00010958,2]
[352610963,1739199033414,-500.0,0.00010958,2]
[352610964,1739199033423,-500.0,0.00010958,2]
[352610965,1739199033640,-500.0,0.00010958,2]
[352610966,1739199033682,-500.0,0.00010958,2]
[352610967,1739199033695,-520.49040532,0.00010958,2]
[352610968,1739199033705,-500.0,0.00010958,2]
[352610969,1739199033715,-500.0,0.00010958,2]
[352610970,1739199033730,-500.0,0.00010958,2]
[352610971,1739199033740,-500.0,0.00010958,2]
[352610972,1739199033750,-500.0,0.00010958,2]
[352610973,1739199033760,-500.0,0.00010958,2]
[352610974,1739199033770,-500.0,0.00010958,2]
[352610975,1739199033780,-500.0,0.00010958,2]
[352610976,1739199033789,-500.0,0.00010958,2]
[352610977,1739199033798,-500.0,0.00010958,2]
[352610978,1739199033808,-278.58167217,0.00010958,2]
[352610979,1739199033818,-500.0,0.00010958,2]
[352610980,1739199033827,-500.0,0.00010958,2]
[352610981,1739199033837,-500.0,0.00010958,2]
[352610982,1739199033848,-500.0,0.00010958,2]
[352610983,1739199033858,-500.0,0.00010958,2]
[352610984,1739199033868,-500.0,0.00010958,2]
[352610985,1739199033878,-500.0,0.00010958,2]
[352610986,1739199033888,-500.0,0.00010958,2]
[352610987,1739199033898,-500.0,0.00010958,2]
[352610988,1739199033908,-500.0,0.00010958,2]
[352610989,1739199033918,-500.0,0.00010958,2]
[352610990,1739199033931,-500.0,0.00010958,2]
[352610991,1739199033942,-500.0,0.00010958,2]
[352610992,1739199033952,-500.0,0.00010958,2]
[352610993,1739199033961,-500.84087361,0.00010958,2]
[352610994,1739199033971,-500.0,0.00010958,2]
[352610995,1739199033981,-490.0,0.00010958,2]
[352610996,1739199033991,-500.0,0.00010958,2]
[352610997,1739199034001,-500.0,0.00010958,2]
[352610998,1739199034012,-500.0,0.00010958,2]
[352610999,1739199034022,-500.0,0.00010958,2]
[352611000,1739199034032,-500.0,0.00010958,2]
[352611001,1739199034042,-500.0,0.00010958,2]
[352611002,1739199034051,-500.0,0.00010958,2]
[352611003,1739199034061,-500.0,0.00010958,2]
[352611004,1739199034070,-500.0,0.00010958,2]
[352611005,1739199034080,-500.0,0.00010958,2]
[352611006,1739199034089,-500.0,0.00010958,2]
[352611007,1739199034099,-502.06562856,0.00010958,2]
[352611008,1739199034109,-500.0,0.00010958,2]
[352611009,1739199034120,-500.0,0.00010958,2]
[352611010,1739199034130,-500.0,0.00010958,2]
[352611011,1739199034140,-500.0,0.00010958,2]
[352611012,1739199034150,-505.93959485,0.00010958,2]
[352611013,1739199034159,-502.85360559,0.00010958,2]
[352611014,1739199034170,-500.0,0.00010958,2]
[352611015,1739199034182,-500.0,0.00010958,2]
[352611016,1739199034195,-500.0,0.00010958,2]
[352611017,1739199034204,-535.46,0.00010958,2]
[352611018,1739199034215,-500.0,0.00010958,2]
[352611019,1739199034224,-502.30211519,0.00010958,2]
[352611020,1739199034233,-500.0,0.00010958,2]
[352611021,1739199034243,-500.0,0.00010958,2]
[352611022,1739199034252,-500.0,0.00010958,2]
[352611023,1739199034261,-502.88331717,0.00010958,2]
[352611024,1739199034270,-240.88987828,0.00010958,2]
[352611025,1739199034289,-259.11012172,0.00010958,2]
[352611026,1739199034298,-500.0,0.00010958,2]
[352611027,1739199034307,-500.0,0.00010958,2]
[352611028,1739199034317,-500.0,0.00010958,2]
[352611029,1739199034326,-500.0,0.00010958,2]
[352611030,1739199034336,-500.0,0.00010958,2]
[352611031,1739199034346,-312.37304445,0.00010958,2]
[352611032,1739199034358,-187.62695555,0.00010958,2]
[352611033,1739199034367,-500.0,0.00010958,2]
[352611034,1739199034376,-410.10251291,0.00010958,2]
[352611035,1739199034409,-89.89748709,0.00010958,2]
[352611036,1739199034419,-500.0,0.00010958,2]
[352611037,1739199034429,-195.59815781,0.00010958,2]
[352611038,1739199034441,-304.40184219,0.00010958,2]
[352611039,1739199034450,-179.0,0.00011066,2]
[352611040,1739199034460,-500.0,0.00011095,2]
[352611041,1739199034470,-228.44816132,0.00011095,2]
[352611042,1739199034482,-271.55183868,0.00011095,2]
[352611043,1739199034491,-500.0,0.00011095,2]
[352611044,1739199034500,-433.20725981,0.00011095,2]
[352611045,1739199034517,-66.79274019,0.00011095,2]
[352611046,1739199034527,-500.0,0.00011095,2]
[352611047,1739199034536,-500.0,0.00011095,2]
[352611048,1739199034545,-500.0,0.00011095,2]
[352611049,1739199034555,-500.0,0.00011095,2]
[352611050,1739199034564,-190.24694897,0.00011095,2]
[352611051,1739199034575,-309.75305103,0.00011095,2]
[352611052,1739199034586,-500.0,0.00011095,2]
[352611053,1739199034595,-500.0,0.00011095,2]
[352611054,1739199034604,-500.0,0.00011095,2]
[352611055,1739199034614,-500.0,0.00011095,2]
[352611056,1739199034623,-500.0,0.00011095,2]
[352611057,1739199034632,-500.0,0.00011095,2]
[352611058,1739199034642,-500.0,0.00011095,2]
[352611059,1739199034651,-500.0,0.00011095,2]
[352611060,1739199034660,-500.0,0.00011095,2]
[352611061,1739199034669,-434.63595026,0.00011095,2]
[352611062,1739199034689,-65.36404974,0.00011095,2]
[352611063,1739199034699,-230.12784239,0.00011095,2]
[352611064,1739199034711,-269.87215761,0.00011095,2]
[352611065,1739199034721,-500.0,0.00011095,2]
[352611066,1739199034730,-500.0,0.00011095,2]
[352611067,1739199034739,-500.0,0.00011095,2]
[352611068,1739199034748,-115.80809109,0.00011095,2]
[352611069,1739199037031,-1395.09553501,8.973e-05,2]
[352611070,1739199037043,-3604.90446499,8.973e-05,2]
[352611071,1739199037052,-256.25615319,0.00011095,2]
[352611072,1739199037067,-127.93575572,0.00011095,2]
[352611073,1739199037076,-500.0,0.00011095,2]
[352611074,1739199037085,-500.0,0.00011095,2]
[352611075,1739199037095,-500.0,0.00011095,2]
[352611076,1739199037104,-500.0,0.00011095,2]
[352611077,1739199037113,-500.0,0.00011095,2]
[352611078,1739199037122,-500.0,0.00011095,2]
[352611079,1739199037132,-500.0,0.00011095,2]
[352611080,1739199037142,-500.0,0.00011095,2]
[352611081,1739199037151,-500.0,0.00011095,2]
[352611082,1739199037161,-500.0,0.00011095,2]
[352611083,1739199037170,-500.0,0.00011095,2]
[352611084,1739199037184,-500.0,0.00011095,2]
[352611085,1739199037194,-500.0,0.00011095,2]
[352611086,1739199037203,-500.0,0.00011095,2]
[352611088,1739199037214,-500.0,0.00011095,2]
[352611090,1739199037223,-500.0,0.00011095,2]
[352611092,1739199037232,-500.0,0.00011095,2]
[352611094,1739199037241,-500.0,0.00011095,2]
[352611096,1739199037250,-500.0,0.00011095,2]
[352611098,1739199037259,-506.51234361,0.00011095,2]
[352611099,1739199037268,-500.0,0.00011095,2]
[352611102,1739199037278,-500.0,0.00011095,2]
[352611103,1739199037287,-500.0,0.00011095,2]
[352611106,1739199037296,-500.0,0.00011095,2]
[352611107,1739199037305,-303.91730574,0.00011095,2]
[352611110,1739199037315,-500.0,0.00011095,2]
[352611112,1739199037324,-500.0,0.00011095,2]
[352611113,1739199037333,-500.0,0.00011095,2]
[352611115,1739199037342,-500.0,0.00011095,2]
[352611117,1739199037351,-517.18996867,0.00011095,2]
[352611119,1739199037360,-500.0,0.00011095,2]
[352611121,1739199037370,-500.0,0.00011095,2]
[352611123,1739199037379,-500.0,0.00011095,2]
[352611125,1739199037388,-500.0,0.00011095,2]
[352611127,1739199037397,-500.0,0.00011095,2]
[352611129,1739199037406,-500.0,0.00011095,2]
[352611131,1739199037415,-500.0,0.00011095,2]
[352611133,1739199037424,-500.0,0.00011095,2]
[352611135,1739199037436,-500.0,0.00011095,2]
[352611137,1739199037446,-99.04462626,0.00011095,2]
[352611228,1739199038314,-400.95537374,0.00011095,2]
[352611230,1739199038323,-500.0,0.00011095,2]
[352611232,1739199038333,-500.0,0.00011095,2]
[352611234,1739199038342,-500.0,0.00011095,2]
[352611236,1739199038351,-89.18462626,0.00011095,2]
[352611238,1739199038362,-410.81537374,0.00011095,2]
[352611240,1739199038371,-500.0,0.00011095,2]
[352611242,1739199038380,-500.0,0.00011095,2]
[352611244,1739199038389,-500.0,0.00011095,2]
[352611246,1739199038398,-344.06615079,0.00011095,2]
[352611249,1739199038410,-155.93384921,0.00011095,2]
[352611251,1739199038419,-500.0,0.00011095,2]
[352611253,1739199038430,-500.0,0.00011095,2]
[352611255,1739199038439,-500.0,0.00011095,2]
[352611257,1739199038448,-500.0,0.00011095,2]
[352611259,1739199038457,-602.48011455,0.00011095,2]
[352611261,1739199038467,-500.0,0.00011095,2]
[352611263,1739199038476,-500.0,0.00011095,2]
[352611265,1739199038485,-500.0,0.00011095,2]
[352611266,1739199038494,-500.0,0.00011095,2]
[352611269,1739199038503,-500.0,0.00011095,2]
[352611270,1739199038512,-500.0,0.00011095,2]
[352611272,1739199038521,-502.16708563,0.00011095,2]
[352611274,1739199038531,-500.0,0.00011095,2]
[352611276,1739199038540,-500.0,0.00011095,2]
[352611277,1739199038549,-500.0,0.00011095,2]
[352611278,1739199038559,-500.0,0.00011095,2]
[352611279,1739199038568,-500.0,0.00011095,2]
[352611280,1739199038577,-615.04723886,0.00011095,2]
[352611281,1739199038588,-500.0,0.00011095,2]
[352611282,1739199038597,-1000.0,0.00011113,2]
[352611283,1739199038607,-27866.5,0.00011157,2]
[352611284,1739199038616,-593.02,0.00011204,2]
[352611285,1739199038625,-500.0,0.00011232,2]
[352611286,1739199038634,-500.0,0.00011232,2]
[352611287,1739199038644,-500.0,0.00011232,2]
[352611288,1739199038653,-500.0,0.00011232,2]
[352611290,1739199038662,-500.0,0.00011232,2]
[352611292,1739199038671,-239.74401066,0.00011232,2]
[352611294,1739199038681,-500.0,0.00011232,2]
[352611296,1739199038691,-500.0,0.00011232,2]
[352611298,1739199038700,-500.0,0.00011232,2]
[352611300,1739199038711,-500.0,0.00011232,2]
[352611302,1739199038723,-500.0,0.00011232,2]
[352611304,1739199038732,-500.0,0.00011232,2]
[352611306,1739199038742,-500.0,0.00011232,2]
[352611308,1739199038751,-500.0,0.00011232,2]
[352611310,1739199038762,-500.0,0.00011232,2]
[352611312,1739199038772,-500.0,0.00011232,2]
[352611314,1739199038781,-500.0,0.00011232,2]
[352611316,1739199038791,-500.0,0.00011232,2]
[352611318,1739199038803,-500.0,0.00011232,2]
[352611320,1739199038813,-500.0,0.00011232,2]
[352611322,1739199038822,-500.0,0.00011232,2]
[352611324,1739199038831,-500.0,0.00011232,2]
[352611326,1739199038840,-500.0,0.00011232,2]
[352611328,1739199038849,-500.0,0.00011232,2]
[352611330,1739199038859,-500.0,0.00011232,2]
[352611332,1739199038867,-500.0,0.00011232,2]
[352611334,1739199038877,-500.0,0.00011232,2]
[352611336,1739199038887,-500.0,0.00011232,2]
[352611338,1739199038896,-500.0,0.00011232,2]
[352611340,1739199038905,-500.0,0.00011232,2]
[352611342,1739199038914,-500.0,0.00011232,2]
[352611344,1739199038923,-500.0,0.00011232,2]
[352611346,1739199038935,-500.0,0.00011232,2]
[352611348,1739199038944,-500.0,0.00011232,2]
[352611350,1739199038954,-500.0,0.00011232,2]
[352611352,1739199038963,-500.0,0.00011232,2]
[352611355,1739199038972,-500.0,0.00011232,2]
[352611358,1739199038981,-500.0,0.00011232,2]
[352611360,1739199038992,-500.0,0.00011232,2]
[352611363,1739199039002,-500.0,0.00011232,2]
[352611366,1739199039011,-500.0,0.00011232,2]
[352611368,1739199039020,-500.0,0.00011232,2]
[352611370,1739199039030,-500.0,0.00011232,2]
[352611372,1739199039040,-500.0,0.00011232,2]
[352611374,1739199039049,-500.0,0.00011232,2]
[352611376,1739199039059,-500.0,0.00011232,2]